lending/lending_fUSD_20240110
["ID","MTS","AMOUNT","RATE_DAILY","PERIOD"]
[311125351,1704922250188,-796.99,0.00037,3]
[311125352,1704922250197,-796.99,0.00037,3]
[311125353,1704922250207,-796.99,0.00037,3]
[311125354,1704922250217,-796.99,0.00037,3]
[311125355,1704922250227,-796.99,0.00037,3]
[311125356,1704922250237,-796.99,0.00037,3]
[311125357,1704922250246,-796.99,0.00037,3]
[311125358,1704922250256,-796.99,0.00037,3]
[311125359,1704922250266,-796.99,0.00037,3]
[311125360,1704922250275,-796.99,0.00037,3]
[311125361,1704922250285,-270.78404736,0.00037,2]
[311125362,1704922250295,-3726.60217233,0.00037031,8]
[311125363,1704922250304,-155.2696412,0.00037053,7]
[311125364,1704922250313,-331.5,0.00037075,2]
[311125365,1704922250323,-358.24522854,0.00037087,8]
[311125366,1704922250336,-1234.40111,0.00037098,4]
[311125367,1704922250346,-6313.63045726,0.000371,7]
[311125368,1704922250375,-456.2106,0.000371,7]
[311125369,1704922250386,-1928.10759571,0.000371,7]
[311125370,1704922250401,-592.826,0.000371,7]
[311125371,1704922250416,-3762.29534703,0.000371,7]
[311125372,1704922250426,-192.58746889,0.00037115,8]
[311125373,1704922250435,-168.20771825,0.00037123,8]
[311125374,1704922250445,-176.92253009,0.00037128,8]
[311125375,1704922250454,-153.09227418,0.00037133,8]
[311125376,1704922250464,-1044.20687933,0.00037139,8]
[311125377,1704922250476,-673.91179569,0.00037139,8]
[311125378,1704922250486,-275.21601502,0.00037144,8]
[311125379,1704922250496,-151.46869918,0.00037156,2]
[311125380,1704922250505,-1234.40111,0.00037198,6]
[311125381,1704922250515,-5739.53724882,0.000372,7]
[311125382,1704922250525,-2013.66,0.000372,2]
[311125383,1704922250534,-513.77473,0.000372,2]
[311125384,1704922250544,-809.56122954,0.0003724,4]
[311125385,1704922250553,-2055.34630722,0.00037252,2]
[311125386,1704922250562,-1234.40111,0.00037298,4]
[311125387,1704922250572,-23672.73,0.000373,7]
[311125388,1704922250581,-1234.40111,0.00037398,6]
[311125389,1704922250591,-2829.94468596,0.000374,2]
[311125390,1704922250600,-6668.03997545,0.000374,2]
[311125391,1704922250609,-1932.19733874,0.000374,2]
[311125392,1704922250619,-396.77742463,0.000374,2]
[311125394,1704922250628,-153.84,0.00037443,2]
[311125396,1704922250638,-932.56753108,0.00037443,8]
[311125398,1704922250657,-150.0,0.00037491,2]
[311125399,1704922250667,-500.0,0.00037498,2]
[311125400,1704922250677,-500.0,0.00037498,2]
[311125401,1704922250688,-1234.40111,0.00037498,4]
[311125402,1704922250699,-153.11915904,0.00037511,7]
[311125403,1704922250709,-159.49727413,0.00037516,7]
[311125404,1704922250720,-500.0,0.00037593,2]
[311125405,1704922250730,-500.0,0.00037593,2]
[311125406,1704922250740,-500.0,0.00037593,2]
[311125407,1704922250750,-500.0,0.00037593,2]
[311125408,1704922250760,-500.0,0.00037593,2]
[311125409,1704922250770,-1234.40111,0.00037598,6]
[311125410,1704922250780,-250.0,0.00037666,2]
[311125411,1704922250790,-151.46869918,0.00037672,2]
[311125412,1704922250799,-1234.40111,0.00037698,4]
[311125413,1704922250809,-1234.40111,0.00037798,6]
[311125414,1704922250818,-13053.07,0.000378,7]
[311125415,1704922250828,-161.92854704,0.000378,2]
[311125422,1704922251091,-1949.12312437,0.00029506,2]
[311125424,1704922251101,-233.62449319,0.00029507,2]
[311125426,1704922251111,-246.28222146,0.00036799,4]
[311125428,1704922251121,-108.85550032,0.000378,2]
[311125430,1704922251131,-161.61,0.00037808,2]
[311125432,1704922251144,-1963.80850651,0.00037808,2]
[311125435,1704922251157,-1522.25149349,0.00037808,2]
[311125437,1704922251168,-894.13,0.00037808,2]
[311125439,1704922251177,-150.0,0.00037831,2]
[311125441,1704922251188,-496.11543729,0.0003789,3]
[311125443,1704922251200,-353.86054689,0.0003789,3]
[311125455,1704922342799,418.1508,0.00022412,90]
[311125459,1704923252101,-2616.11953545,0.00027392,2]
[311125460,1704923252121,-1581.63681732,0.00027392,2]
[311125461,1704923252139,-8353.654265,0.00027393,2]
[311125462,1704923252160,-399.88875683,0.00027531,2]
[311125463,1704923252181,-203.24074821,0.00027532,2]
[311125464,1704923252200,-1600.34902235,0.00027533,2]
[311125465,1704923252223,-3140.47732294,0.00027533,2]
[311125466,1704923252242,-183.64978834,0.00027574,2]
[311125467,1704923252265,-300.0,0.00027678,2]
[311125468,1704923252286,-150.0,0.00027678,2]
[311125469,1704923252306,-762.56372355,0.00027818,2]
[311125470,1704923252328,-169.40616018,0.00027965,2]
[311125471,1704923252348,-623.94741812,0.00028208,3]
[311125472,1704923252372,-3000.26578585,0.00028306,2]
[311125473,1704923252393,-650.0,0.00028307,2]
[311125474,1704923252414,-13518.77074613,0.00028308,2]
[311125475,1704923252435,-150.0,0.00029099,2]
[311125476,1704923252455,-738.87508028,0.00029195,2]
[311125477,1704923252474,-2719.0911004,0.00029356,2]
[311125478,1704923252493,-1407.28,0.00029356,2]
[311125479,1704923252512,-499.99,0.00029356,2]
[311125480,1704923252532,-474.91,0.00029431,2]
[311125481,1704923252551,-365.98,0.00029505,2]
[311125482,1704923252570,-299.99,0.00029505,12]
[311125483,1704923252589,-349.31,0.00029505,2]
[311125484,1704923252607,-523.56841679,0.00029505,2]
[311125485,1704923252627,-156.0189859,0.00029506,2]
[311125486,1704923252645,-157.79684584,0.00029506,2]
[311125487,1704923252664,-150.0,0.00029647,2]
[311125488,1704923252687,-204.0,0.00029908,2]
[311125489,1704923252706,-3779.48092032,0.0003,2]
[311125490,1704923252726,-155.0,0.0003,2]
[311125491,1704923252745,-196.13911173,0.00030099,4]
[311125492,1704923252764,-507.72143321,0.00030099,4]
[311125493,1704923252782,-155.0,0.00030099,4]
[311125494,1704923252801,-334.41659857,0.00030099,10]
[311125495,1704923252820,-252.41687247,0.00030099,4]
[311125496,1704923252839,-1011.71719336,0.00030099,4]
[311125497,1704923252858,-155.21125418,0.00030099,4]
[311125498,1704923252884,-866.20589014,0.00030099,2]
[311125499,1704923252903,-159.87160544,0.00030099,4]
[311125500,1704923252924,-264.62205712,0.00030099,4]
[311125501,1704923252942,-155.0,0.00030099,4]
[311125502,1704923252961,-1797.25178474,0.00030099,4]
[311125503,1704923252980,-246.1670273,0.00030099,4]
[311125504,1704923252999,-677.34550316,0.00030099,4]
[311125505,1704923253019,-278.75448039,0.00030099,4]
[311125506,1704923253038,-4604.00022712,0.00030099,2]
[311125507,1704923253058,-20298.0,0.000301,2]
[311125508,1704923253077,-286.24,0.00031,2]
[311125509,1704923253096,-200.0,0.00031142,2]
[311125510,1704923253115,-2000.0,0.00031155,2]
[311125511,1704923253136,-169.40616018,0.00031243,2]
[311125512,1704923253157,-250.0,0.00031313,2]
[311125513,1704923253180,-152.26,0.00031347,2]
[311125514,1704923253199,-200.0,0.00031418,2]
[311125515,1704923253218,-250.0,0.00031434,2]
[311125516,1704923253237,-150.0,0.00031487,2]
[311125517,1704923253257,-10000.0,0.00031559,2]
[311125518,1704923253278,-222.42,0.0003163,2]
[311125519,1704923253298,-2585.1505971,0.0003163,2]
[311125575,1704923434050,-1466.24905793,0.00028306,2]
[311125576,1704923434062,-155.0,0.00030999,2]
[311125577,1704923434071,-243.3,0.00031,2]
[311125578,1704923434081,-4051.65137392,0.00031558,4]
[311125579,1704923434094,-167.7999237,0.00031558,4]
[311125580,1704923434103,-472.11924445,0.00031559,2]
[311125581,1704923434137,-27.88075555,0.00031559,2]
[311125582,1704923434147,-308.51011258,0.00031629,2]
[311125583,1704923434218,-733.47420287,0.00031629,2]
[311125584,1704923434229,-119.8494029,0.0003163,2]
[311125585,1704923434238,-198.86,0.0003163,10]
[311125586,1704923434247,-200.0,0.0003163,2]
[311125587,1704923434256,-121.04694185,0.0003163,2]
[311125588,1704923434268,-378.95305815,0.0003163,2]
[311125589,1704923434277,-500.0,0.0003163,2]
[311125590,1704923434286,-500.0,0.0003163,2]
[311125591,1704923434297,-335.99900716,0.0003163,2]
[311125592,1704923434311,-164.00099284,0.0003163,2]
[311125593,1704923434321,-474.91,0.00031695,2]
[311125594,1704923434330,-418.88,0.00031695,2]
[311125595,1704923434338,-291.6,0.00031695,12]
[311125596,1704923434347,-1671.39562881,0.00032013,2]
[311125597,1704923434367,-1353.30437119,0.00032013,2]
[311125598,1704923434376,-378.2466,0.00032023,2]
[311125599,1704923434385,-151.38,0.00032076,2]
[311125600,1704923434395,-2139.22891319,0.00032121,2]
[311125601,1704923434404,-192.60042394,0.00032122,4]
[311125602,1704923434415,-399.06517884,0.00032122,4]
[311125603,1704923434424,-4432.16,0.00032123,2]
[311125604,1704923434434,-151.38,0.00032205,2]
[311125606,1704923434443,-165.19897121,0.00032222,6]
[311125608,1704923434459,-38.80102879,0.00032222,6]
[311125610,1704923434469,-294.5248,0.00032227,2]
[311125612,1704923434478,-575.25249782,0.00032247,2]
[311125614,1704923434493,-409.66375946,0.00032247,2]
[311125616,1704923434504,-538.88,0.00032247,2]
[311125617,1704923434516,-3177.90374272,0.00032247,2]
[311125619,1704923434526,-200.0,0.00032325,120]
[311125621,1704923434535,-500.0,0.00032326,2]
[311125622,1704923434544,-151.38,0.00032333,2]
[311125624,1704923434554,-596.08,0.00032338,2]
[311125626,1704923434564,-403.5124,0.00032356,10]
[311125627,1704923434573,-176.22,0.00032377,2]
[311125629,1704923434582,-157.54,0.00032383,2]
[311125631,1704923434591,-1000.0,0.00032389,2]
[311125632,1704923434600,-245.00745947,0.00032448,2]
[311125634,1704923434613,-576.23513454,0.00032448,2]
[311125635,1704923434629,-1498.95358187,0.00032448,2]
[311125636,1704923434641,-499.16534257,0.00032448,2]
[311125637,1704923434653,-1216.44,0.00032448,2]
[311125638,1704923434670,-818.10924833,0.00032448,2]
[311125639,1704923434682,-7109.54364909,0.00032448,2]
[311125640,1704923434694,-524.96989304,0.00032448,2]
[311125641,1704923434705,-469.125,0.00032448,2]
[311125644,1704923437759,-365.99022689,0.0003163,2]
[311125645,1704923437773,-134.00977311,0.0003163,2]
[311125646,1704923437786,-159.37438325,0.00032389,14]
[311125647,1704923437798,-4.21281268,0.00032448,2]
[311125648,1704923437815,-10938.23787841,0.00032448,2]
[311125649,1704923437827,-151.38,0.00032462,2]
[311125650,1704923437840,-200.0,0.00032474,2]
[311125651,1704923437853,-250.0,0.00032486,2]
[311125652,1704923437866,-150.0,0.00032489,2]
[311125653,1704923437876,-586.45,0.00032502,2]
[311125654,1704923437888,-155.13,0.00032528,2]
[311125655,1704923437898,-151.55,0.00032557,2]
[311125656,1704923437908,-151.38,0.0003259,2]
[311125657,1704923437919,-151.38,0.00032719,2]
[311125658,1704923437931,-153.22,0.00032831,2]
[311125659,1704923437943,-151.38,0.00032847,2]
[311125660,1704923437954,-384.45,0.00032877,15]
[311125661,1704923437967,-1234.40111,0.00032898,2]
[311125662,1704923437977,-1000.0,0.000329,2]
[311125663,1704923437987,-151.38,0.00032976,2]
[311125664,1704923437998,-1234.40111,0.00032998,2]
[311125665,1704923438009,-155.13,0.0003307,2]
[311125666,1704923438022,-1234.40111,0.00033098,2]
[311125667,1704923438033,-151.38,0.00033105,2]
[311125668,1704923438044,-1234.40111,0.00033198,2]
[311125670,1704923438055,-151.38,0.00033233,2]
[311125672,1704923438067,-1123.40111,0.00033298,4]
[311125674,1704923438077,-152.26,0.00033304,2]
[311125677,1704923438088,-151.38,0.00033362,2]
[311125679,1704923438099,-2836.6225,0.00033389,2]
[311125681,1704923438110,-1234.40111,0.00033398,4]
[311125683,1704923438121,-151.38,0.0003349,2]
[311125685,1704923438132,-1234.40111,0.00033498,4]
[311125688,1704923438142,-1234.40111,0.00033598,4]
[311125690,1704923438153,-155.13,0.00033612,2]
[311125692,1704923438164,-151.38,0.00033619,2]
[311125694,1704923438175,-1234.40111,0.00033698,4]
[311125696,1704923438186,-1900.4601,0.00033698,2]
[311125699,1704923438196,-176.22,0.00033747,2]
[311125701,1704923438207,-151.38,0.00033747,2]
[311125703,1704923438218,-1234.40111,0.00033798,4]
[311125705,1704923438229,-2189.23,0.00033868,10]
[311125707,1704923438239,-1933.69,0.00033878,10]
[311125710,1704923438250,-1234.40111,0.00033898,4]
[311125712,1704923438261,-474.91,0.00033958,2]
[311125714,1704923438272,-1234.40111,0.00033998,4]
[311125716,1704923438283,-1000.0,0.00034,4]
[311125719,1704923438295,-155.13,0.00034154,2]
[311125721,1704923438306,-150.0,0.00034183,2]
[311125723,1704923438317,-1234.40111,0.00034198,4]
[311125725,1704923438331,-1234.40111,0.00034298,4]
[311125727,1704923438342,-800.0,0.00034384,2]
[311125730,1704923438353,-1234.40111,0.00034398,4]
[311125732,1704923438364,-3287.21612338,0.00034444,4]
[311125734,1704923438376,-151.0,0.0003445,120]
[311125736,1704923438387,-1234.40111,0.00034498,4]
[311125738,1704923438398,-165.75,0.00034521,2]
[311125741,1704923438409,-204.0,0.00034537,10]
[311125743,1704923438419,-1234.40111,0.00034598,4]
[311125745,1704923438430,-155.13,0.00034696,2]
[311125747,1704923438441,-1234.40111,0.00034698,4]
[311125749,1704923438451,-198.86,0.00034729,10]
[311125752,1704923438462,-454.7456,0.00034798,2]
[311125754,1704923438473,-1234.40111,0.00034798,4]
[311125756,1704923438484,-382.35477392,0.00034798,7]
[311125758,1704923438494,-180.52269824,0.00034798,2]
[311125760,1704923438505,-344.25895789,0.00034798,2]
[311125763,1704923438517,-1201.07637035,0.00034798,2]
[311125765,1704923438528,-1201.07637035,0.00034848,2]
[311125767,1704923438538,-1000.0,0.00034886,2]
[311125769,1704923438549,-500.0,0.00034886,2]
[311125771,1704923438561,-183986.10916091,0.00034886,2]
[311125774,1704923438576,-3827.63619175,0.00034886,2]
[311125776,1704923438590,-454.596,0.00034886,2]
[311125779,1704923438604,-18655.17846982,0.00034886,2]
[311125783,1704923438639,-1824.36,0.00034876,10]
[311125786,1704923438650,-3561.34846399,0.00034886,2]
[311125788,1704923438664,-5442.26520782,0.00034886,2]
[311125791,1704923438678,-502.00005816,0.00034886,2]
[311125793,1704923438691,-25399.06065157,0.00034886,2]
[311125795,1704923438704,-1251.75,0.00034886,2]
[311125799,1704923438727,-199.592,0.00034183,2]
[311125801,1704923438738,-1920.05579598,0.00034886,2]
[311125803,1704923438749,-1234.40111,0.00034898,4]
[311125805,1704923438760,-1201.07637035,0.00034898,2]
[311125808,1704923438771,-1002.1228,0.00034899,2]
[311125810,1704923438781,-17187.75192367,0.00034899,2]
[311125949,1704923440216,-500.0,0.0003163,2]
[311125951,1704923440225,-435.11173024,0.00034899,2]
[311125953,1704923440237,-504.29789126,0.00034899,2]
[311125961,1704923440307,-1003.60097104,0.00034899,2]
[311125964,1704923440318,-1640.42146252,0.00034899,2]
[311125972,1704923440383,-2161.75108759,0.00034899,2]
[311125974,1704923440394,-9378.2357,0.00034899,2]
[311126003,1704923441046,-1826.25635128,0.00034899,2]
[311126004,1704923441061,-1379.8070824,0.00034899,2]
[311126005,1704923441070,-585.15940318,0.000349,2]
[311126006,1704923441079,-181.59497969,0.000349,2]
[311126007,1704923441089,-121.02765184,0.00034989,2]
[311126162,1704923442637,-814.62321184,0.00033598,2]
[311126181,1704923442760,-550.40728816,0.00033598,2]
[311126183,1704923442769,-90.20166823,0.00034989,2]
[311126185,1704923442778,-265.52916792,0.0003499,8]
[311126187,1704923442791,-1073.24883763,0.0003499,8]
[311126189,1704923442801,-155.0,0.00034997,4]
[311126191,1704923442813,-619.24040099,0.00034997,2]
[311126193,1704923442823,-342.28547052,0.00034997,30]
[311126195,1704923442834,-401.78011774,0.00034998,4]
[311126197,1704923442844,-439.44092851,0.00034998,2]
[311126199,1704923442857,-5175.6132321,0.00034998,2]
[311126201,1704923442869,-1373.07,0.00034998,2]
[311126204,1704923442881,-5193.96656015,0.00034998,2]
[311126206,1704923442895,-3578.3131751,0.00034998,2]
[311126208,1704923442907,-1004.95784701,0.00034998,2]
[311126210,1704923442919,-2335.58504971,0.00034998,2]
[311126212,1704923442931,-7521.29999952,0.00034998,2]
[311126216,1704923442953,-35940.97071105,0.00034998,2]
[311126218,1704923442965,-259.6721127,0.00034998,2]
[311126298,1704923445750,-500.0,0.0003163,2]
[311126299,1704923445761,-500.0,0.0003163,2]
[311126300,1704923445770,-370.42383277,0.00034898,4]
[311126301,1704923445780,-802.69615826,0.0003499,2]
[311126302,1704923445856,-950.53813725,0.0003499,2]
[311126303,1704923445866,-1164.10576575,0.00034998,2]
[311126304,1704923445878,-508.23503502,0.00034998,2]
[311126305,1704923445894,-5027.66,0.00034998,2]
[311126306,1704923446150,-365.222,0.00034998,2]
[311126307,1704923446242,-459.3406998,0.00034998,2]
[311126308,1704923514155,500.10670118,0.0003,30]
[311126311,1704923605960,2564.86442377,0.000271,30]
[311126312,1704924090378,-265.07070248,0.00022877,2]
[311126313,1704924090401,-487.02993234,0.00022878,2]
[311126314,1704924090424,-160.39659426,0.00022879,2]
[311126315,1704924090446,-2611.62517321,0.00022879,2]
[311126316,1704924090468,-3140.47732294,0.0002288,2]
[311126317,1704924090488,-1265.69284731,0.00022881,2]
[311126318,1704924090509,-814.6232,0.00022899,2]
[311126319,1704924090533,-1255.08422746,0.00022899,2]
[311126320,1704924328580,160.0,0.00027089,120]
[311126321,1704924328825,160.0,0.00030475,120]
[311126322,1704924390946,396.99740447,0.00022999,10]
[311126323,1704924440098,-160.39659426,0.00022791,2]
[311126324,1704924440125,-165.87919785,0.00022792,2]
[311126325,1704924440147,-3140.47732294,0.00022889,2]
[311126326,1704924440168,-1201.65286976,0.0002289,2]
[311126327,1704924440188,-370.42383277,0.00022897,2]
[311126328,1704924440209,-802.69615826,0.00022897,2]
[311126329,1704924440230,-1000.0,0.00022898,2]
[311126330,1704924440252,-5145.74677254,0.00022899,2]
[311126331,1704924440273,-417.584,0.00022899,2]
[311126332,1704924440293,-24925.9662,0.00022899,2]
[311126333,1704924440318,-6828.8689,0.00022899,2]
[311126334,1704924440353,-547.763,0.00022899,2]
[311126335,1704924440376,-22542.53134199,0.00022899,2]
[311126338,1704924566816,733.6752,0.00022692,14]
[311126363,1704924631760,-162.21509693,0.00022898,2]
[311126366,1704924631770,-3140.47732294,0.00022898,2]
[311126367,1704924631779,-11396.79235058,0.00022899,2]
[311126370,1704924631791,-350.0,0.00022899,2]
[311126377,1704924631830,-8163.90130743,0.00022899,2]
[311126380,1704924631839,-846.5908,0.00022899,2]
[311126383,1704924631849,-390.4348,0.000229,2]
[311126386,1704924631858,-1889.6089,0.000229,2]
[311126388,1704924631868,-500.0,0.000229,2]
[311126391,1704924631877,-936.1967,0.000229,2]
[311126393,1704924631887,-375.26819321,0.000229,2]
[311126395,1704924631897,-344.25895787,0.000229,2]
[311126397,1704924631908,-264.58511852,0.00022997,2]
[311126399,1704924631918,-1014.44958375,0.00022997,2]
[311126401,1704924631927,-486.74627673,0.00022997,2]
[311126403,1704924631937,-461.78255331,0.00022997,2]
[311126405,1704924631948,-907.84269771,0.00022998,2]
[311126407,1704924631957,-5826.28765585,0.00022999,2]
[311126408,1704924631966,-23599.21512174,0.00022999,2]
[311126409,1704924631978,-501.10653636,0.00022999,2]
[311126410,1704924633419,-3741.05993897,0.00022999,2]
[311126411,1704924633431,-1124.72457423,0.00022999,2]
[311126412,1704924633490,-400.0,0.00022999,2]
[311126413,1704924633502,-4871.66564178,0.00022999,2]
[311126414,1704924633515,-449.13655822,0.00022999,2]
[311126453,1704924637789,-294.75,0.00022999,2]
[311126456,1704924637801,-1522.71062,0.00022999,2]
[311126464,1704924637875,-2466.36209073,0.00022999,2]
[311126467,1704924638001,-11802.55108076,0.00022999,2]
[311126468,1704924638013,-112527.11928851,0.00022999,2]
[311126469,1704924638023,-45350.16244636,0.00023,2]
[311126470,1704924638035,-1623.05900494,0.00023,2]
[311126471,1704924638069,-459.4,0.00023,2]
[311126472,1704924638081,-50560.0,0.00023,2]
[311126473,1704924638092,-803.82,0.00023,2]
[311126474,1704924638104,-5676.83292466,0.00023,2]
[311126475,1704924638116,-4245.42645,0.00023,2]
[311126476,1704924638127,-4572.1,0.00023,2]
[311126477,1704924638185,-7976.59337912,0.00023,2]
[311126478,1704924638197,-8102.79564362,0.00023,2]
[311126479,1704924638215,-2026.95333924,0.00023,2]
[311126480,1704924638226,-12552.56526245,0.00023,2]
[311126481,1704924638235,-37780.90470967,0.00023,2]
[311126482,1704924638245,-330.0,0.0002313,2]
[311126483,1704924638253,-7570.73542047,0.00023991,2]
[311126484,1704924638262,-5000.0,0.00023991,2]
[311126485,1704924638272,-5000.0,0.00023991,2]
[311126486,1704924638281,-200.06257653,0.00024,2]
[311126487,1704924638295,-1036.38,0.00024,2]
[311126488,1704924638304,-1549.87,0.00024,2]
[311126489,1704924638314,-800.0,0.00024772,2]
[311126490,1704924638323,-350.0,0.00025,3]
[311126491,1704924638332,-375.26819316,0.00025329,2]
[311126493,1704924638341,-450.94,0.0002536,2]
[311126495,1704924638350,-150.0,0.00026079,2]
[311126497,1704924638359,-165.87919785,0.00026556,2]
[311126498,1704924638368,-496.73,0.00026575,2]
[311126499,1704924638377,-200.0,0.00026948,2]
[311126500,1704924638386,-23900.0,0.00026951,2]
[311126501,1704924638395,-157.43,0.0002696,2]
[311126502,1704924638404,-250.0,0.00026964,2]
[311126503,1704924638416,-2000.0,0.00026965,2]
[311126504,1704924638425,-400.0,0.00027,3]
[311126505,1704924638434,-188.37,0.0002704,2]
[311126506,1704924638443,-538.96,0.00027051,2]
[311126507,1704924638456,-176.22,0.00027071,2]
[311126508,1704924638465,-500.0,0.00027113,2]
[311126509,1704924638475,-250.0,0.00027226,2]
[311126510,1704924638484,-200.0,0.00027389,2]
[311126511,1704924638494,-250.0,0.00027397,2]
[311126513,1704924638503,-250.0,0.000274,2]
[311126515,1704924638512,-1011.68,0.000274,2]
[311126517,1704924638521,-450.94,0.00027624,2]
[311126519,1704924638531,-375.26819316,0.00027757,3]
[311126521,1704924638540,-800.0,0.00027869,2]
[311126523,1704924638549,-167.01,0.0002797,2]
[311126525,1704924638558,-157.43,0.00028014,2]
[311126527,1704924638568,-5584.69,0.00028255,2]
[311126529,1704924638577,-159.19,0.00028823,2]
[311126531,1704924638587,-163.01,0.00028975,2]
[311126533,1704924638596,-450.0,0.00029,3]
[311126535,1704924638605,-157.43,0.00029067,2]
[311126537,1704924638615,-344.25895787,0.00029071,2]
[311126539,1704924638624,-163.01,0.00029554,2]
[311126541,1704924638633,-423.40111,0.00029588,2]
[311126543,1704924638642,-666.40111,0.00029688,2]
[311126545,1704924638651,-666.40111,0.00029788,2]
[311126546,1704924638660,-1011.68,0.0002979,2]
[311126548,1704924638669,-12476.36681569,0.000298,2]
[311126551,1704924638685,-1648.79103856,0.000298,2]
[311126553,1704924638696,-8593.49378744,0.000298,2]
[311126556,1704924638714,-323.76233598,0.000298,2]
[311126558,1704924638725,-5179.59634795,0.000298,2]
[311126560,1704924638737,-5693.51666919,0.000298,2]
[311126562,1704924638750,-9179.2,0.000298,2]
[311126565,1704924638764,-491.44693021,0.000298,2]
[311126628,1704924640342,-915.74877492,0.000298,2]
[311126629,1704924640410,-327.92847207,0.000298,2]
[311126630,1704924640972,-1627.7871889,0.000298,2]
[311126631,1704924640984,-1072.01781389,0.000298,2]
[311126632,1704924640996,-1068.52842727,0.000298,2]
[311126633,1704924641008,-13717.92100058,0.000298,2]
[311126634,1704924641019,-11683.78259013,0.000298,2]
[311126635,1704924641029,-666.40111,0.00029888,2]
[311126636,1704924641039,-450.94,0.00029888,2]
[311126637,1704924641049,-7500.0,0.000299,2]
[311126638,1704924641061,-181.59497969,0.000299,2]
[311126639,1704924641070,-162.08468209,0.000299,2]
[311126640,1704924641080,-162.08468209,0.000299,2]
[311126641,1704924641090,-247.51403512,0.000299,2]
[311126642,1704924641099,-166.61863526,0.0002999,2]
[311126643,1704924641109,-1011.68,0.0002999,2]
[311126644,1704924641120,-1011.68,0.0002999,2]
[311126645,1704924641129,-155.0,0.0003,2]
[311126646,1704924641139,-580.75318973,0.0003,2]
[311126647,1704924641148,-81433.93738534,0.0003,4]
[311126649,1704924641160,-70755.62574,0.0003,4]
[311126651,1704924641174,-6287.62910243,0.0003,4]
[311126652,1704924641186,-463.38494082,0.0003,4]
[311126653,1704924641198,-23576.8434,0.0003,4]
[311126654,1704924641215,-684.89104101,0.0003,4]
[311126656,1704924641321,-825.51222204,0.0003,4]
[311126657,1704924641333,-415.91114346,0.0003,4]
[311126658,1704924641344,-3117.67309403,0.0003,4]
[311126659,1704924641356,-1368.89189486,0.0003,4]
[311126660,1704924641368,-1449.40000111,0.0003,4]
[311126675,1704924642874,-1830.39542682,0.00029799,2]
[311126676,1704924642883,-7177.07257617,0.0003,4]
[311126677,1704924642895,-660.19,0.0003,4]
[311126678,1704924642907,-701.666667,0.0003,4]
[311126679,1704924642918,-38886.61962493,0.0003,4]
[311126680,1704924642929,-558.65808,0.0003,4]
[311126681,1704924642941,-798.22074696,0.0003,4]
[311126682,1704924642965,-6877.09886753,0.0003,4]
[311126683,1704924642977,-12450.50578021,0.0003,4]
[311126684,1704924642988,-4540.58567678,0.0003,4]
[311126685,1704924643002,-581.92924032,0.0003,4]
[311126686,1704924643013,-2101.2987297,0.0003,4]
[311126687,1704924643060,-624.82988308,0.0003,4]
[311126688,1704924643071,-779.70882028,0.0003,4]
[311126689,1704924643082,-5042.35987095,0.0003,4]
[311126690,1704924643097,-80766.80977413,0.0003,4]
[311126691,1704924643107,-3033.0,0.0003,2]
[311126692,1704924643116,-18268.0,0.0003,2]
[311126693,1704924643126,-152.0,0.0003,2]
[311126694,1704924643135,-157.43,0.00030121,2]
[311126695,1704924643144,-163.01,0.00030134,2]
[311126696,1704924643153,-300.0,0.00030136,2]
[311126697,1704924643163,-300.0,0.00030136,2]
[311126698,1704924643172,-303.85549272,0.00030136,2]
[311126699,1704924643181,-153.84,0.00030137,2]
[311126700,1704924643191,-375.26819316,0.00030186,4]
[311126701,1704924643202,-165.87919785,0.00030319,2]
[311126702,1704924643211,-163.01,0.00030714,2]
[311126703,1704924643221,-200.0,0.00030812,2]
[311126704,1704924643231,-800.0,0.00030965,2]